{"text_format":"1","workbook":"xlsx","n_sheets":4,"sheets":["Formulário","Base_de_dados","Requisitos_de_candidatura","Listas"],"not_rendered":{"charts":0,"images":4,"macros":1,"external_links":0,"defined_names":5,"comments":0,"pivot_tables":0},"unopened":[],"bounds":{"document_bytes":16777216,"sheet_cells":100000,"rows_first":2000,"rows_last":500,"rows_between":2000,"halvings":0,"cell_chars":16384,"cell_head_chars":4096},"cells_cut":0,"cells_raw":0,"read":"whole","date_system":"1900"}

{"sheet":"Formulário","index":0,"n_rows":221,"n_cols":8,"rows_kept":221,"cut":false,"hidden":false,"merged":[[1,1,1,5],[220,2,220,4],[42,2,42,4],[178,2,178,4],[132,2,132,4],[52,2,52,4],[104,2,104,4],[118,2,118,4],[128,2,128,4],[60,2,60,4],[72,2,72,4],[84,2,84,4],[94,2,94,4],[2,1,2,4],[4,2,4,4]]}
[]
[null,"CANDIDATURA AO REGULAMENTO MUNICIPAL DE APOIO AO DESPORTO",null,null,null,null,null,{"$f":"NOW()","v":"2023-07-07T10:13:14.130"}]
[]
[]
[null,null,"QUADRO 1 - IDENTIFICAÇÃO DA ENTIDADE"]
[]
[null,null,"Nome da Entidade*",null,null,null,null,"Consultar os requisitos de candidatura"]
[]
[null,null,"Morada*"]
[]
[null,null,"Localidade*"]
[]
[null,null,"Código Postal*"]
[]
[null,null,"Freguesia*"]
[]
[null,null,"Data da Fundação*"]
[]
[null,null,"Telefone"]
[]
[null,null,"Telemóvel*"]
[]
[null,null,"Fax"]
[]
[null,null,"E-mail*"]
[]
[null,null,"Número Fiscal de Contribuinte*"]
[]
[null,null,"Data de Publicação dos Estatutos em Diário da República ou Data do Ato Constitutivo da Entidade*"]
[]
[null,null,"Número de Publicação dos Estatutos em Diário da República ou Número do Ato Constitutivo da Entidade*"]
[]
[null,null,"Tipo de Estatuto*"]
[]
[null,null,"Número de Sócios*"]
[]
[null,null,"Data da Última Contagem*"]
[]
[null,null,"Número Total de Atletas Federados*"]
[]
[]
[]
[null,null,"QUADRO 2 - IDENTIFICAÇÃO DO PRESIDENTE DA ENTIDADE"]
[]
[null,null,"Nome do Presidente*"]
[]
[null,null,"E-mail*"]
[]
[null,null,"Telemóvel*"]
[]
[]
[]
[null,null,"QUADRO 3 - INSTALAÇÕES DESPORTIVAS"]
[]
[null,null,"Obras Diretamente Relacionadas com a Atividade Desportiva Regular"]
[]
[null,null,"Obras de Apoio à Atividade Desportiva Regular"]
[]
[]
[]
[null,null,"QUADRO 4 - AQUISIÇÃO DE MATERIAL DESPORTIVO ESTRUTURAL"]
[]
[null,null,"Número de Praticantes*"]
[]
[null,null,"Número de Competições Oficiais de Âmbito Distrital*"]
[]
[null,null,"Número de Competições Oficiais de Âmbito Regional*"]
[]
[null,null,"Número de Competições Oficiais de Âmbito Nacional*"]
[]
[]
[]
[null,null,"QUADRO 5 - FORNECIMENTO DE MATERIAL DESPORTIVO DE DESGASTE"]
[]
[null,null,"Número de Praticantes*"]
[]
[null,null,"Número de Competições Oficiais de Âmbito Distrital*"]
[]
[null,null,"Número de Competições Oficiais de Âmbito Regional*"]
[]
[null,null,"Número de Competições Oficiais de Âmbito Nacional*"]
[]
[]
[]
[null,null,"QUADRO 6 - PARTICIPAÇÃO EM EVENTOS DESPORTIVOS NÃO REGULARES "]
[]
[null,null,"Competição Regional Oficial*"]
[]
[null,null,"Competição Nacional Oficial*"]
[]
[null,null,"Competição Oficial Internacional*"]
[]
[]
[]
[null,null,"QUADRO 7 - ORGANIZAÇÃO DE EVENTOS DESPORTIVOS INTERNACIONAIS OU NACIONAIS DE RELEVO"]
[]
[null,null,"Competição Regional Oficial*"]
[]
[null,null,"Competição Nacional Oficial*"]
[]
[null,null,"Competição Oficial Internacional*"]
[]
[]
[]
[null,null,"QUADRO 8 - APOIO A TRANSPORTES"]
[]
[null,null,"Número de Praticantes*"]
[]
[null,null,"Número de Competições Oficiais de Âmbito Distrital*"]
[]
[null,null,"Número de Competições Oficiais de Âmbito Regional*"]
[]
[null,null,"Número de Competições Oficiais de Âmbito Nacional*"]
[]
[null,null,"Número de Competições Oficiais de Âmbito Internacional*"]
[]
[]
[]
[null,null,"QUADRO 9 - INCENTIVO AO ALTO RENDIMENTO"]
[]
[null,null,"Títulos Nacionais*"]
[]
[null,null,"Atletas Presentes em Campeonatos da Europa*"]
[]
[null,null,"Atletas Presentes em Campeonatos do Mundo*"]
[]
[null,null,"Atletas Presentes em Jogos Olímpicos*"]
[]
[null,null,"Terminou a primeira fase do processo de candidatura, prossiga agora com o preenchendo dos quadros 10 e 11. Este dois quados, e só estes, devem ser preenchidos tantas vezes quantas as que forem necessárias para efetuar todas as candidaturas às modalidades e escalões. No caso de pretenderem ficar com cópia do documento que estão a preencher deverão imprimi-lo por cada candidatura/modalidade/escalão."]
[]
[]
[]
[null,null,"QUADRO 10 - RECONHECIMENTO DA FORMAÇÃO DESPORTIVA"]
[]
[null,null,"Modalidade*"]
[]
[null,null,"Escalão*"]
[]
[null,null,"Sexo*"]
[]
[null,null,"Treinadores com Formação Académica*"]
[]
[null,null,"Treinadores com Grau Mais Elevado da Respetiva Federação Desportiva*"]
[]
[null,null,"Treinadores Não InculÍdos nos Pontos Anteriores* "]
[]
[null,null,"Acompanhamento Médico Especializado*"]
[]
[null,null,"Número de Praticantes*"]
[]
[null,null,"Número de Horas de Treino Por Semana*"]
[]
[null,null,"Número de Competições Oficiais Âmbito Distrital*"]
[]
[null,null,"Número de Competições Oficiais Âmbito Regional*"]
[]
[null,null,"Número de Competições Oficiais Âmbito Nacional*"]
[]
[null,null,"Número de Competições Oficiais Âmbito Internacional*"]
[]
[null,null," Número de Quilómetros [Km]*"]
[]
[null,null,"Títulos Distritais*"]
[]
[null,null,"Títulos Regionais*"]
[]
[null,null,"Títulos Nacionais*"]
[]
[null,null,"Títulos Internacionais*"]
[]
[null,null,"Atletas Presentes em Campeonatos da Europa*"]
[]
[null,null,"Atletas Presentes em Campeonatos do Mundo*"]
[]
[null,null,"Atletas Presentes em Jogos Olímpicos*"]
[]
[]
[]
[null,null,"QUADRO 11 - CONFIRMAÇÃO DA PRESTAÇÃO DESPORTIVA"]
[]
[null,null,"Modalidade*"]
[]
[null,null,"Escalão*"]
[]
[null,null,"Sexo*"]
[]
[null,null,"Treinadores com Formação Académica*"]
[]
[null,null,"Treinadores com Grau Mais Elevado da Respetiva Federação Desportiva*"]
[]
[null,null,"Treinadores Não InculÍdos nos Pontos Anteriores* "]
[]
[null,null,"Acompanhamento Médico Especializado*"]
[]
[null,null,"Número de Praticantes*"]
[]
[null,null,"Número de Horas de Treino Por Semana*"]
[]
[null,null,"Número de Competições Oficiais Âmbito Distrital*"]
[]
[null,null,"Número de Competições Oficiais Âmbito Regional*"]
[]
[null,null,"Número de Competições Oficiais Âmbito Nacional*"]
[]
[null,null,"Número de Competições Oficiais Âmbito Internacional*"]
[]
[null,null,"Títulos Distritais*"]
[]
[null,null,"Títulos Regionais*"]
[]
[null,null,"Títulos Nacionais*"]
[]
[null,null,"Títulos Internacionais*"]
[]
[null,null,"Atletas Presentes em Campeonatos da Europa*"]
[]
[null,null,"Atletas Presentes em Campeonatos do Mundo*"]
[]
[null,null,"Atletas Presentes em Jogos Olímpicos*"]
[]
[null,null,"* Campo de preenchimento obrigatório"]

{"sheet":"Base_de_dados","index":1,"n_rows":1,"n_cols":87,"rows_kept":1,"cut":false,"hidden":false,"merged":[]}
["ID",{"$f":"Formulário!$C7","v":"Nome da Entidade*"},{"$f":"Formulário!$C9","v":"Morada*"},{"$f":"Formulário!$C11","v":"Localidade*"},{"$f":"Formulário!$C13","v":"Código Postal*"},{"$f":"Formulário!$C15","v":"Freguesia*"},{"$f":"Formulário!$C17","v":"Data da Fundação*"},{"$f":"Formulário!$C19","v":"Telefone"},{"$f":"Formulário!$C21","v":"Telemóvel*"},{"$f":"Formulário!$C23","v":"Fax"},{"$f":"Formulário!$C25","v":"E-mail*"},{"$f":"Formulário!$C27","v":"Número Fiscal de Contribuinte*"},{"$f":"Formulário!$C29","v":"Data de Publicação dos Estatutos em Diário da República ou Data do Ato Constitutivo da Entidade*"},{"$f":"Formulário!$C31","v":"Número de Publicação dos Estatutos em Diário da República ou Número do Ato Constitutivo da Entidade*"},{"$f":"Formulário!$C33","v":"Tipo de Estatuto*"},{"$f":"Formulário!$C35","v":"Número de Sócios*"},{"$f":"Formulário!$C37","v":"Data da Última Contagem*"},{"$f":"Formulário!$C39","v":"Número Total de Atletas Federados*"},{"$f":"Formulário!$C45","v":"Nome do Presidente*"},{"$f":"Formulário!$C47","v":"E-mail*"},{"$f":"Formulário!$C49","v":"Telemóvel*"},{"$f":"Formulário!$C55","v":"Obras Diretamente Relacionadas com a Atividade Desportiva Regular"},{"$f":"Formulário!$C57","v":"Obras de Apoio à Atividade Desportiva Regular"},{"$f":"Formulário!$C63","v":"Número de Praticantes*"},{"$f":"Formulário!$C65","v":"Número de Competições Oficiais de Âmbito Distrital*"},{"$f":"Formulário!$C67","v":"Número de Competições Oficiais de Âmbito Regional*"},{"$f":"Formulário!$C69","v":"Número de Competições Oficiais de Âmbito Nacional*"},{"$f":"Formulário!$C75","v":"Número de Praticantes*"},{"$f":"Formulário!$C77","v":"Número de Competições Oficiais de Âmbito Distrital*"},{"$f":"Formulário!$C79","v":"Número de Competições Oficiais de Âmbito Regional*"},{"$f":"Formulário!$C81","v":"Número de Competições Oficiais de Âmbito Nacional*"},{"$f":"Formulário!$C87","v":"Competição Regional Oficial*"},{"$f":"Formulário!$C89","v":"Competição Nacional Oficial*"},{"$f":"Formulário!$C91","v":"Competição Oficial Internacional*"},{"$f":"Formulário!$C97","v":"Competição Regional Oficial*"},{"$f":"Formulário!$C99","v":"Competição Nacional Oficial*"},{"$f":"Formulário!$C101","v":"Competição Oficial Internacional*"},{"$f":"Formulário!$C107","v":"Número de Praticantes*"},{"$f":"Formulário!$C109","v":"Número de Competições Oficiais de Âmbito Distrital*"},{"$f":"Formulário!$C111","v":"Número de Competições Oficiais de Âmbito Regional*"},{"$f":"Formulário!$C113","v":"Número de Competições Oficiais de Âmbito Nacional*"},{"$f":"Formulário!$C115","v":"Número de Competições Oficiais de Âmbito Internacional*"},{"$f":"Formulário!$C121","v":"Títulos Nacionais*"},{"$f":"Formulário!$C123","v":"Atletas Presentes em Campeonatos da Europa*"},{"$f":"Formulário!$C125","v":"Atletas Presentes em Campeonatos do Mundo*"},{"$f":"Formulário!$C127","v":"Atletas Presentes em Jogos Olímpicos*"},{"$f":"Formulário!$C135","v":"Modalidade*"},{"$f":"Formulário!$C137","v":"Escalão*"},{"$f":"Formulário!$C139","v":"Sexo*"},{"$f":"Formulário!$C141","v":"Treinadores com Formação Académica*"},{"$f":"Formulário!$C143","v":"Treinadores com Grau Mais Elevado da Respetiva Federação Desportiva*"},{"$f":"Formulário!$C145","v":"Treinadores Não InculÍdos nos Pontos Anteriores* "},{"$f":"Formulário!$C147","v":"Acompanhamento Médico Especializado*"},{"$f":"Formulário!$C149","v":"Número de Praticantes*"},{"$f":"Formulário!$C151","v":"Número de Horas de Treino Por Semana*"},{"$f":"Formulário!$C153","v":"Número de Competições Oficiais Âmbito Distrital*"},{"$f":"Formulário!$C155","v":"Número de Competições Oficiais Âmbito Regional*"},{"$f":"Formulário!$C157","v":"Número de Competições Oficiais Âmbito Nacional*"},{"$f":"Formulário!$C159","v":"Número de Competições Oficiais Âmbito Internacional*"},{"$f":"Formulário!$C161","v":" Número de Quilómetros [Km]*"},{"$f":"Formulário!$C163","v":"Títulos Distritais*"},{"$f":"Formulário!$C165","v":"Títulos Regionais*"},{"$f":"Formulário!$C167","v":"Títulos Nacionais*"},{"$f":"Formulário!$C169","v":"Títulos Internacionais*"},{"$f":"Formulário!$C171","v":"Atletas Presentes em Campeonatos da Europa*"},{"$f":"Formulário!$C173","v":"Atletas Presentes em Campeonatos do Mundo*"},{"$f":"Formulário!$C175","v":"Atletas Presentes em Jogos Olímpicos*"},{"$f":"Formulário!$C181","v":"Modalidade*"},{"$f":"Formulário!$C183","v":"Escalão*"},{"$f":"Formulário!$C185","v":"Sexo*"},{"$f":"Formulário!$C187","v":"Treinadores com Formação Académica*"},{"$f":"Formulário!$C189","v":"Treinadores com Grau Mais Elevado da Respetiva Federação Desportiva*"},{"$f":"Formulário!$C191","v":"Treinadores Não InculÍdos nos Pontos Anteriores* "},{"$f":"Formulário!$C193","v":"Acompanhamento Médico Especializado*"},{"$f":"Formulário!$C195","v":"Número de Praticantes*"},{"$f":"Formulário!$C197","v":"Número de Horas de Treino Por Semana*"},{"$f":"Formulário!$C199","v":"Número de Competições Oficiais Âmbito Distrital*"},{"$f":"Formulário!$C201","v":"Número de Competições Oficiais Âmbito Regional*"},{"$f":"Formulário!$C203","v":"Número de Competições Oficiais Âmbito Nacional*"},{"$f":"Formulário!$C205","v":"Número de Competições Oficiais Âmbito Internacional*"},{"$f":"Formulário!$C207","v":"Títulos Distritais*"},{"$f":"Formulário!$C209","v":"Títulos Regionais*"},{"$f":"Formulário!$C211","v":"Títulos Nacionais*"},{"$f":"Formulário!$C213","v":"Títulos Internacionais*"},{"$f":"Formulário!$C215","v":"Atletas Presentes em Campeonatos da Europa*"},{"$f":"Formulário!$C217","v":"Atletas Presentes em Campeonatos do Mundo*"},{"$f":"Formulário!$C219","v":"Atletas Presentes em Jogos Olímpicos*"}]

{"sheet":"Requisitos_de_candidatura","index":2,"n_rows":34,"n_cols":5,"rows_kept":34,"cut":false,"hidden":false,"merged":[[31,3,31,4],[2,3,2,4],[28,2,28,4],[30,3,30,4]]}
[]
[]
[null,null,null,"HABILITAÇÃO PARA CANDIDATURA"]
[]
[null,null,"Artº 4º "]
[]
[null,null,null,"a)","Preenchimento do impresso de abertura de candidatura;"]
[]
[null,null,null,"b)","Cópia dos documentos que certifiquem que a entidade se encontra legalmente constituída;"]
[]
[null,null,null,"c)","Estatutos, regulamentos internos e cópias da respetiva publicação;"]
[]
[null,null,null,"d)","Cópia do cartão de identificação de pessoa coletiva;"]
[]
[null,null,null,"e)","Documento comprovativo de que a entidade tem sede no Município de Coimbra há, pelo menos, três anos, com atividade desportiva ou ai promovam ações\nde reconhecido interesse municipal;"]
[]
[null,null,null,"f)","Plano anual de atividades e orçamento;"]
[]
[null,null,null,"g)","Atas comprovativas da tomada de posse dos corpos dirigentes e relatórios com o parecer do conselho fiscal, de aprovação das conta e da assembleia\ngeral eleitoral;"]
[]
[null,null,null,"h)","Documento comprovativo do cumprimento das obrigações fiscais ou autorização de consulta junto da Autoridade Tributária e Aduaneira;"]
[]
[null,null,null,"i)","Documento que ateste estar regularizada a situação contributiva com a Segurança Social ou permissão de consulta da mesma;"]
[]
[null,null,null,"j)","Declaração, subscrita pela associação distrital/regional ou federação nacional da modalidade, comprovativa dos dados declarados, referente ao número de\nfiliados, habilitações desportivas dos técnicos, participação em eventos, campeonatos e resultados alcançados;"]
[]
[null,null,null,"k)","Apresentação do programa de desenvolvimento desportivo e a sua caraterização, com especificação das formas, meios e prazos para o seu cumprimento."]
[]
[null,null,"NOTA:"]
[]
[null,null,null,"A não entrega de todos os documentos supra mencionados, bem como, o total cumprimentos dos prazos estabelecidos neste regulamento excluirá"]
[null,null,null,"a candidatura."]
[]
[null,null,null,null,"Voltar para o formulário"]

{"sheet":"Listas","index":3,"n_rows":4,"n_cols":2,"rows_kept":4,"cut":false,"hidden":false,"merged":[]}
["Tipo de Estatuto","Género"]
[]
["Estatuto Utilidade Pública ","Masculino"]
["Estatuto de Interesse Desportivo Municipal","Feminino"]